bitfinex-derivatives/quotes_ETHF0:USTF0_20241229
["timestamp","ask_amount","ask_price","bid_price","bid_amount"]
[1735433371863,4.36360799,3392.3,3392.1,0.29531]
[1735433372064,4.36360799,3392.3,3392.2,0.2953]
[1735433375762,4.36360799,3392.3,3391.8,2.37598023]
[1735433375962,0.29531,3392.2,3392.1,0.29531]
[1735433376668,0.29531,3392.2,3392.0,0.29531]
[1735433376867,0.29531,3392.2,3392.1,0.29531]
[1735433377063,3.75191799,3392.2,3392.1,0.29531]
[1735433377669,3.45660799,3392.2,3392.1,0.29531]
[1735433383672,5.81111066,3392.3,3392.1,0.29531]
[1735433384670,5.81111066,3392.3,3391.7,0.73836]
[1735433385170,5.81111066,3392.3,3392.1,0.29531]
[1735433385372,5.81111066,3392.3,3391.5,3.11438023]
[1735433385373,5.51581066,3392.3,3391.5,3.11438023]
[1735433385568,5.51581066,3392.3,3392.2,0.2953]
[1735433386062,0.907,3392.3,3392.2,0.2953]
[1735433387171,5.52014775,3392.3,3392.2,0.2953]
[1735433387867,5.52014775,3392.3,3392.2,1.3404506]
[1735433388064,5.06574775,3392.3,3392.2,1.3404506]
[1735433389774,0.4526,3392.3,3392.2,1.3404506]
[1735433395371,2.956,3392.2,3391.2,3.29613652]
[1735433395571,0.2954,3391.1,3391.0,9.83597643]
[1735433396875,0.29543,3390.8,3390.7,0.4653]
[1735433398179,10.58689631,3390.8,3390.7,0.4653]
[1735433399278,4.82427731,3390.8,3390.7,0.4653]
[1735433399675,4.52884731,3390.8,3390.7,0.4653]
[1735433399968,4.52884731,3390.8,3390.7,0.76074]
[1735433400771,4.60690042,3390.8,3390.7,0.76074]
[1735433400970,4.60690042,3390.8,3390.7,0.4653]
[1735433402078,4.90231042,3391.0,3390.7,0.4653]
[1735433402286,4.90231042,3391.0,3390.8,0.4634]
[1735433403683,0.44338069,3390.9,3390.8,0.4634]
[1735433404887,4.90231042,3391.0,3390.8,2.84309601]
[1735433404888,4.60690042,3391.0,3390.8,2.84309601]
[1735433405084,4.60690042,3391.1,3391.0,0.29541]
[1735433405281,3.20550042,3391.1,3391.0,5.88290601]
[1735433405480,1.78550042,3391.1,3391.0,5.88290601]
[1735433406481,5.762619,3391.4,3391.0,5.88290601]
[1735433406482,2.30306969,3391.3,3391.0,5.58749601]
[1735433406787,2.30306969,3391.3,3391.2,0.29539]
[1735433408088,2.30306969,3391.4,3391.3,0.29538]
[1735433409488,2.30306969,3391.5,3391.4,0.29537]
[1735433409786,2.30306969,3391.5,3391.1,0.444]
[1735433409989,0.2954,3391.1,3391.0,3.2078]
[1735433410189,0.29542,3390.9,3390.8,0.4634]
[1735433410390,0.29543,3390.8,3390.7,0.4653]
[1735433411895,3.75003453,3390.8,3390.7,0.4653]
[1735433412589,3.45460453,3390.8,3390.7,0.4653]
[1735433413383,3.45460453,3390.8,3390.7,1.18634]
[1735433414189,2.2995073,3391.0,3390.7,0.8909]
[1735433414585,2.2995073,3391.0,3390.9,0.29542]
[1735433414796,2.2995073,3391.0,3390.8,0.29542]
[1735433414995,2.2995073,3391.0,3390.9,0.29542]
[1735433415895,3.45460453,3391.0,3390.9,0.29542]
[1735433418901,3.45460453,3391.0,3390.4,0.4546]
[1735433419102,0.29543,3390.8,3390.4,0.75006]
[1735433419303,0.29544,3390.7,3390.4,0.75005]
[1735433419601,0.74054,3390.7,3390.4,0.75005]
[1735433421299,3.45460453,3390.6,3390.4,0.75005]
[1735433421499,3.45460453,3390.6,3390.4,0.75006]
[1735433422597,2.2990511,3390.5,3390.4,0.75006]
[1735433423299,0.8973511,3390.5,3390.4,0.75006]
[1735433424301,3.45460453,3390.9,3390.8,0.29543]
[1735433425599,3.45460453,3391.0,3390.9,0.29542]
[1735433432397,3.45460453,3391.0,3390.8,0.29542]
[1735433432599,0.8769,3390.9,3390.8,0.29542]
[1735433434195,4.3309068,3390.9,3390.8,0.29542]
[1735433434906,4.3309068,3390.9,3390.6,0.24582]
[1735433435100,4.3309068,3390.9,3390.5,3.94644]
[1735433435300,4.3309068,3390.9,3390.8,0.29542]
[1735433435301,0.8769,3390.9,3390.8,0.29542]
[1735433438406,0.4262,3390.9,3390.8,0.29542]
[1735433438610,4.6063894,3391.0,3390.6,3.06029601]
[1735433438912,4.6063894,3391.0,3390.9,0.29542]
[1735433439404,5.762619,3391.1,3390.6,3.06029601]
[1735433439605,5.762619,3391.1,3391.0,0.29541]
[1735433440512,5.762619,3391.1,3390.9,0.29541]
[1735433440714,0.4482,3391.0,3390.9,0.29541]
[1735433442600,4.40621788,3391.0,3390.9,0.29541]
[1735433443711,10.18042164,3391.0,3390.9,0.29541]
[1735433444510,4.40621788,3391.0,3390.9,0.29541]
[1735433446308,0.4482,3391.0,3390.9,0.29541]
[1735433446613,0.4576,3391.2,3391.1,0.2954]
[1735433447114,3.6517,3391.3,3391.2,0.29539]
[1735433449213,7.61070041,3391.3,3391.2,0.29539]
[1735433455716,4.40290041,3391.3,3391.2,0.29539]
[1735433463721,4.40290041,3391.3,3391.1,0.4582]
[1735433463920,4.40290041,3391.3,3390.9,0.29541]
[1735433463921,0.2954,3391.2,3390.9,0.29541]
[1735433464121,0.2954,3391.2,3391.0,0.29541]
[1735433465518,3.95900041,3391.1,3391.0,0.29541]
[1735433466119,0.29542,3390.9,3390.7,3.4538]
[1735433466320,0.29543,3390.8,3390.7,0.246]
[1735433466520,0.72643,3390.8,3390.7,0.246]
[1735433466931,0.431,3390.8,3390.7,0.54144]
[1735433467122,4.0577,3391.0,3390.7,0.246]
[1735433467123,3.6304,3391.0,3390.7,0.246]
[1735433467328,0.4226,3391.0,3390.9,0.29542]
[1735433467921,7.31346677,3391.0,3390.9,0.29542]
[1735433468824,4.38453305,3391.0,3390.9,0.29542]
[1735433470430,0.29542,3390.9,3390.7,0.246]
[1735433470929,0.4491,3390.8,3390.7,0.246]
[1735433471129,0.4491,3390.8,3390.7,0.54144]
[1735433471631,4.41103305,3390.8,3390.7,0.54144]
[1735433477526,4.41103305,3390.8,3390.7,0.246]
[1735433477825,4.41103305,3390.8,3390.7,0.54144]
[1735433483367,3.96193305,3390.8,3390.7,0.54144]
[1735433484269,3.96193305,3390.8,3390.7,3.74924]
[1735433484863,3.96193305,3390.8,3390.7,4.19104]
[1735433485253,5.77875123,3390.9,3390.7,3.8956]
[1735433485448,5.77875123,3390.9,3390.8,0.29543]
[1735433486352,5.77875123,3390.9,3390.8,1.34113639]
[1735433486552,3.96193305,3390.9,3390.8,1.34113639]
[1735433487848,9.74068428,3390.9,3390.8,1.34113639]
[1735433491444,9.74068428,3390.9,3390.8,0.29543]
[1735433492346,9.74068428,3390.9,3390.7,4.49950639]
[1735433492347,0.29543,3390.8,3390.7,0.246]
[1735433492552,1.18623,3390.8,3390.7,0.246]
[1735433493359,11.48578802,3390.8,3390.7,0.246]
[1735433497452,18.41604115,3390.8,3390.7,0.246]
[1735433498247,18.12061115,3390.8,3390.7,0.246]
[1735433498646,18.12061115,3390.8,3390.7,0.54144]
[1735433499253,11.78298618,3390.8,3390.7,0.54144]
[1735433500555,7.82105313,3390.8,3390.7,0.54144]
[1735433500859,0.8908,3390.8,3390.7,0.54144]
[1735433501160,4.0986,3390.8,3390.7,0.54144]
[1735433502253,8.06053305,3390.8,3390.7,0.54144]
[1735433509469,4.41833305,3390.8,3390.7,0.54144]
[1735433509664,3.96193305,3390.8,3390.7,2.92163309]
[1735433510772,9.73649862,3390.8,3390.7,2.92163309]
[1735433512369,5.77456557,3390.9,3390.8,0.29543]
[1735433512565,5.77456557,3390.9,3390.8,0.73763]
[1735433512765,5.77456557,3390.9,3390.8,1.15983]
[1735433514071,9.73233084,3390.9,3390.8,1.15983]
[1735433515473,9.73233084,3390.9,3390.8,0.71763]
[1735433517172,3.95776527,3390.9,3390.8,0.71763]
[1735433518269,3.2078,3391.0,3390.9,0.29542]
[1735433519574,7.16556527,3391.0,3390.9,0.29542]
[1735433521370,7.16556527,3391.0,3390.8,0.4222]
[1735433521570,7.16556527,3391.0,3390.7,0.246]
[1735433521571,0.29543,3390.8,3390.7,0.246]
[1735433522275,0.75633,3390.8,3390.7,0.246]
[1735433523778,4.71409527,3390.8,3390.7,0.246]
[1735433524169,4.41866527,3390.8,3390.7,0.54144]
[1735433525778,4.41866527,3390.8,3390.7,0.246]
[1735433525972,4.71409527,3390.8,3390.7,0.246]
[1735433526574,11.04762565,3390.8,3390.7,0.246]
[1735433527678,4.71409527,3390.8,3390.7,0.246]
[1735433527879,4.41866527,3390.8,3390.7,0.54144]
[1735433528074,3.95776527,3390.8,3390.7,0.54144]
[1735433528780,3.2078,3391.0,3390.7,0.246]
[1735433529077,3.2078,3391.0,3390.9,0.29542]
[1735433529279,3.2078,3391.0,3390.7,0.246]
[1735433529280,3.50321,3391.0,3390.8,0.29542]
[1735433529478,3.2078,3391.0,3390.9,0.29542]
[1735433530074,3.50321,3391.0,3390.9,0.29542]
[1735433530276,7.46097527,3391.0,3390.9,0.29542]
[1735433530474,7.16556527,3391.0,3390.9,0.29542]
[1735433531481,13.5000017,3391.0,3390.9,0.29542]
[1735433533580,0.29543,3390.8,3390.7,0.54143]
[1735433534781,4.25319527,3390.8,3390.7,0.54143]
[1735433535279,4.25319527,3390.8,3390.7,0.246]
[1735433535479,4.70859527,3390.8,3390.7,0.246]
[1735433536786,4.25319527,3390.8,3390.7,0.246]
[1735433539882,3.95776527,3390.8,3390.7,0.54144]
[1735433541981,6.93404987,3390.8,3390.7,0.54144]
[1735433543197,10.89181514,3390.8,3390.7,0.54144]
[1735433544289,17.22625157,3390.9,3390.7,0.54144]
[1735433544594,17.22625157,3390.9,3390.7,0.246]
[1735433544795,17.22625157,3390.9,3390.8,1.16313]
[1735433545790,10.89181514,3390.9,3390.8,1.16313]
[1735433546094,3.95776527,3390.9,3390.8,1.16313]
[1735433547204,6.93404987,3391.1,3390.8,1.16313]
[1735433547205,6.93404987,3391.1,3391.0,0.29541]
[1735433548489,17.23045155,3391.4,3391.3,0.29538]
[1735433549085,17.23045155,3391.4,3390.9,2.37958309]
[1735433549290,17.23045155,3391.4,3391.1,0.29539]
[1735433549490,17.23045155,3391.4,3391.2,0.29539]
[1735433552300,17.23045155,3391.4,3391.3,0.29538]
[1735433553000,17.23045155,3391.4,3391.2,0.29539]
[1735433553200,17.23045155,3391.4,3390.9,2.37958309]
[1735433553401,17.23045155,3391.4,3391.3,0.29538]
[1735433554003,17.23045155,3391.4,3391.2,0.29539]
[1735433554208,17.52583155,3391.4,3391.1,0.2954]
[1735433555100,17.23045155,3391.4,3391.3,0.29538]
[1735433555298,13.27268628,3391.4,3391.3,0.29538]
[1735433556003,6.93404987,3391.4,3391.3,0.29538]
[1735433556395,7.22942987,3391.4,3391.1,0.2954]
[1735433556600,4.25735974,3391.4,3391.1,0.2954]
[1735433556796,0.4495,3391.3,3391.1,0.2954]
[1735433557899,3.96197974,3391.2,3391.1,0.2954]
[1735433568207,1.35367974,3391.2,3391.1,0.2954]
[1735433568402,5.73127834,3391.2,3391.1,5.2954]
[1735433568710,5.04647834,3391.2,3391.1,5.2954]
[1735433569612,2.31050177,3391.5,3391.1,6.179]
[1735433569813,2.31050177,3391.5,3391.4,5.88275309]
[1735433570314,2.31050177,3391.5,3391.4,10.88275309]
[1735433570613,1.69789177,3391.5,3391.4,10.88275309]
[1735433571013,1.69789177,3391.7,3391.4,10.58738309]
[1735433571218,1.69789177,3391.7,3391.6,0.29536]
[1735433572516,1.3533,3391.8,3391.4,5.58738309]
[1735433572709,1.3533,3391.8,3391.7,0.29535]
[1735433575217,1.64864,3391.8,3391.5,0.29537]
[1735433575414,5.11439266,3391.8,3391.5,0.29537]
[1735433576012,4.81905266,3391.8,3391.5,0.29537]
[1735433576813,4.62100354,3391.6,3391.5,0.29537]
[1735433579415,4.62100354,3391.7,3391.6,0.29536]
[1735433580825,1.3533,3391.8,3391.6,0.29536]
[1735433580826,5.97430354,3391.8,3391.6,0.29536]
[1735433581122,5.97430354,3391.8,3391.7,0.29535]
[1735433582219,5.13339829,3391.8,3391.7,0.29535]
[1735433583312,1.3533,3391.8,3391.7,0.29535]
[1735433584518,5.9696333,3391.8,3391.7,0.29535]
[1735433586123,1.3533,3391.8,3391.7,0.29535]
[1735433588229,5.13644896,3391.8,3391.7,0.29535]
[1735433588730,5.13644896,3391.8,3391.4,2.37958309]
[1735433589333,5.13644896,3391.8,3391.5,0.29536]
[1735433589730,5.43179896,3391.8,3391.4,2.37958309]
[1735433589931,4.62037597,3391.6,3391.4,2.67495309]
[1735433591032,4.62037597,3391.6,3391.5,0.29537]
[1735433591230,3.78314896,3391.7,3391.5,0.29537]
[1735433591231,5.77546996,3391.7,3391.5,0.29537]
[1735433592035,5.77546996,3391.7,3391.6,0.29536]
[1735433593533,9.56073947,3391.7,3391.6,0.29536]
[1735433593734,9.56073947,3391.7,3391.5,0.29537]
[1735433593935,9.56073947,3391.7,3391.2,0.29539]
[1735433594135,0.29537,3391.5,3391.2,0.29539]
[1735433594839,9.56073947,3391.4,3391.2,0.29539]
[1735433595238,9.56073947,3391.4,3391.1,0.246]
[1735433595438,0.4484,3391.3,3391.2,0.29539]
[1735433596232,6.22386996,3391.3,3391.2,0.29539]
[1735433597739,10.00913947,3391.3,3391.2,0.29539]
[1735433599935,0.4484,3391.3,3391.2,0.29539]
[1735433600940,4.62476072,3391.4,3391.1,0.246]
[1735433601239,5.77546996,3391.5,3391.4,0.29537]
[1735433602537,4.62536682,3391.5,3391.4,0.29537]
[1735433604238,4.62536682,3391.6,3391.4,0.29537]
[1735433604645,4.62536682,3391.6,3391.5,0.29537]
[1735433605544,0.4278,3391.7,3391.5,0.29537]
[1735433606644,3.78876418,3391.6,3391.5,0.29537]
[1735433609545,3.78876418,3391.6,3391.5,3.50317]
[1735433610647,4.62497067,3391.7,3391.6,0.29536]
[1735433610839,4.62497067,3391.7,3391.6,2.67494309]
[1735433612247,3.47024806,3391.7,3391.6,2.67494309]
[1735433620849,5.49227067,3391.8,3391.5,3.50316]
[1735433621053,0.4603,3391.6,3391.5,3.2078]
[1735433621254,0.4603,3391.6,3391.5,3.50317]
[1735433622442,4.24935115,3391.6,3391.5,3.50317]
[1735433622840,4.24935115,3391.6,3391.5,0.29537]
[1735433628562,10.03056449,3391.6,3391.4,0.29537]
[1735433628952,10.03056449,3391.6,3391.3,5.58738309]
[1735433629151,10.03056449,3391.6,3391.5,0.29537]
[1735433629557,10.03056449,3391.6,3391.3,5.58738309]
[1735433629752,10.03056449,3391.6,3391.5,0.29537]
[1735433632559,10.03056449,3391.6,3391.4,0.29537]
[1735433632759,10.03056449,3391.6,3391.5,0.29537]
[1735433633452,10.03056449,3391.6,3391.3,5.58738309]
[1735433633653,10.03056449,3391.6,3391.4,0.29537]
[1735433635053,6.24151334,3391.6,3391.4,0.29537]
[1735433636360,5.78121334,3391.5,3391.4,0.29537]
[1735433638053,9.57065406,3391.5,3391.4,0.29537]
[1735433642260,9.57065406,3391.5,3391.4,1.34084847]
[1735433646159,3.78944072,3391.5,3391.4,1.34084847]
[1735433647666,3.78944072,3391.5,3391.4,4.54864847]
[1735433647961,6.24318469,3391.6,3391.5,0.29537]
[1735433649162,5.08632259,3391.6,3391.5,0.29537]
[1735433649361,5.08632259,3391.6,3391.5,1.04547847]
[1735433650166,5.08632259,3391.6,3391.5,1.34084847]
[1735433650669,4.2472387,3391.6,3391.5,1.34084847]
[1735433651768,6.24104147,3391.6,3391.5,1.34084847]
[1735433652764,0.4603,3391.6,3391.2,0.246]
[1735433652965,0.4603,3391.6,3391.5,1.04547847]
[1735433653662,0.75566,3391.6,3391.2,0.54139]
[1735433653870,10.3238842,3391.6,3391.3,1.04547847]
[1735433654368,0.29537,3391.5,3391.2,0.246]
[1735433654567,0.29538,3391.3,3391.2,0.246]
[1735433654767,1.04547847,3391.3,3390.8,4.64554593]
[1735433654967,0.4529,3391.2,3390.8,4.64554593]
[1735433655165,0.2954,3391.1,3390.8,4.64554593]
[1735433655472,0.29541,3391.0,3390.7,1.04547847]
[1735433655668,0.29542,3390.9,3390.7,1.04547847]
[1735433655970,0.29541,3391.0,3390.7,1.04547847]
[1735433656378,0.29541,3391.0,3390.6,8.14878593]
[1735433656772,3.2078,3390.8,3390.6,4.94098593]
[1735433656966,3.2078,3390.8,3390.6,0.29544]
[1735433656967,0.4356,3390.7,3390.6,0.29544]
[1735433657269,0.4356,3390.7,3390.3,2.37967408]
[1735433657270,0.8755,3390.7,3390.1,3.2078]
[1735433657571,0.29545,3390.6,3390.2,0.29547]
[1735433657975,0.75915,3390.5,3390.1,0.29548]
[1735433658183,3.46326256,3390.2,3390.0,2.37967408]
[1735433658369,3.46326256,3390.2,3390.1,0.29549]
[1735433661071,3.2078,3390.3,3390.2,0.29548]
[1735433661072,6.67106256,3390.3,3390.2,0.29548]
[1735433661978,3.2078,3390.3,3390.2,0.29548]
[1735433663574,3.92696256,3390.5,3390.2,3.2078]
[1735433663781,3.92696256,3390.5,3390.4,0.29546]
[1735433664374,0.4637,3390.5,3390.4,0.29546]
[1735433666077,3.92696256,3390.5,3390.4,0.29546]
[1735433667279,0.4637,3390.5,3390.4,0.29546]
[1735433673383,0.4637,3390.5,3390.3,5.58747408]
[1735433673891,0.4593,3390.4,3390.3,5.58747408]
[1735433675091,0.9084,3390.4,3390.3,5.58747408]
[1735433675490,0.9084,3390.4,3390.3,2.37967408]
[1735433676392,0.9084,3390.4,3390.3,1.34155469]
[1735433678395,0.9084,3390.4,3390.3,0.29547]
[1735433678583,0.9084,3390.4,3390.3,1.34155469]
[1735433691199,3.21005112,3390.4,3390.3,1.34155469]
[1735433692696,0.9084,3390.4,3390.3,1.34155469]
[1735433695295,4.37166256,3390.4,3390.3,1.34155469]
[1735433696503,0.9084,3390.4,3390.3,1.34155469]
[1735433699005,5.52608341,3390.4,3390.3,1.34155469]
[1735433700102,6.68914147,3390.4,3390.3,1.34155469]
[1735433701099,6.68914147,3390.4,3390.0,3.2078]
[1735433701306,1.20387,3390.4,3390.1,1.04608469]
[1735433702604,1.20387,3390.4,3390.1,1.34157469]
[1735433703712,1.20387,3390.4,3390.0,3.2078]
[1735433703713,0.9084,3390.4,3390.0,3.2078]
[1735433703913,6.0288496,3390.3,3390.1,1.04608469]
[1735433704121,0.29548,3390.2,3390.1,1.04608469]
[1735433707816,7.22952987,3390.3,3390.1,1.04608469]
[1735433708016,0.29548,3390.3,3390.1,1.04608469]
[1735433708216,0.29548,3390.3,3390.1,1.34157469]
[1735433708519,0.29548,3390.3,3390.1,1.04608469]
[1735433709016,0.29547,3390.3,3390.1,1.04608469]
[1735433709619,0.29547,3390.3,3390.1,1.34157469]
[1735433710213,7.84244987,3390.4,3390.1,1.04608469]
[1735433710416,7.84244987,3390.4,3389.5,0.73885]
[1735433710417,0.29548,3390.2,3389.5,0.73885]
[1735433710617,3.2078,3390.1,3390.0,1.04608469]
[1735433711213,3.50329,3390.1,3389.2,4.64554593]
[1735433711420,0.9184,3390.0,3389.2,4.64554593]
[1735433711623,3.2078,3389.7,3389.4,1.04608469]
[1735433711817,0.29554,3389.6,3389.4,1.04608469]
[1735433712121,0.4581,3389.5,3389.4,1.04608469]
[1735433713419,0.4581,3389.5,3389.2,1.04608469]
[1735433713619,0.29556,3389.3,3389.2,1.04608469]
[1735433713920,3.2078,3389.3,3389.2,1.04608469]
[1735433714312,3.6458,3389.3,3389.2,1.04608469]
[1735433714515,9.4174848,3389.3,3389.2,1.04608469]
[1735433714910,9.4174848,3389.3,3389.2,1.34165469]
[1735433715214,0.29557,3389.2,3388.9,0.29559]
[1735433715417,0.29557,3389.1,3389.0,1.04608469]
[1735433715620,0.29557,3389.2,3389.0,1.04608469]
[1735433716126,0.4558,3389.1,3389.0,1.04608469]
[1735433716420,0.4558,3389.1,3389.0,1.34166469]
[1735433717221,5.06662083,3389.1,3389.0,1.34166469]
[1735433717519,5.06662083,3389.1,3389.0,1.04608469]
[1735433719722,0.4558,3389.1,3389.0,1.34166469]
[1735433721128,3.91015771,3389.1,3389.0,1.34166469]
[1735433722426,0.4558,3389.1,3389.0,1.34166469]
[1735433723521,2.75830925,3389.1,3389.0,1.34166469]
[1735433723827,2.75830925,3389.1,3389.0,0.29558]
[1735433724027,2.75830925,3389.1,3389.0,1.34166469]
[1735433724220,2.75830925,3389.1,3389.0,1.04608469]
[1735433724826,0.4558,3389.1,3389.0,1.04608469]
[1735433725528,0.4558,3389.1,3389.0,1.34166469]
[1735433726121,2.30250925,3389.2,3389.0,2.09216938]
[1735433726326,2.30250925,3389.2,3389.1,0.29557]
[1735433727426,5.94830925,3389.3,3389.2,0.29557]
[1735433727626,5.94830925,3389.3,3389.2,1.34165469]
[1735433729728,5.51030925,3389.3,3389.2,1.34165469]
[1735433731234,3.2078,3389.3,3389.2,1.34165469]
[1735433731532,2.30250925,3389.4,3389.3,0.29556]
[1735433732233,2.30250925,3389.4,3389.3,0.54186]
[1735433732934,2.30250925,3389.4,3389.3,5.54186]
[1735433733128,3.10035771,3389.6,3389.5,0.29554]
[1735433733330,2.85395771,3389.6,3389.5,3.56670938]
[1735433733532,4.61082083,3390.3,3389.5,8.27116938]
[1735433733726,4.61082083,3390.3,3390.2,1.34156469]
[1735433734227,4.61082083,3390.3,3389.7,3.2078]
[1735433734429,4.61082083,3390.3,3389.9,2.38019298]
[1735433734635,4.61082083,3390.3,3390.2,0.29548]
[1735433735134,4.61082083,3390.3,3389.9,2.38019298]
[1735433735135,1.3307,3390.6,3389.9,2.38019298]
[1735433735437,1.62615,3390.6,3390.1,0.29548]
[1735433735737,1.3307,3390.6,3390.3,0.29547]
[1735433736226,5.94152083,3390.6,3390.3,0.29547]
[1735433736428,5.94152083,3390.6,3390.4,0.29546]
[1735433737034,5.94152083,3390.6,3390.2,2.38019298]
[1735433737339,5.94152083,3390.6,3390.5,0.29545]
[1735433737535,1.3307,3390.6,3390.5,0.29545]
[1735433737838,0.8849,3390.6,3390.5,2.67564298]
[1735433739737,0.8849,3390.6,3390.5,0.29545]
[1735433740429,0.8849,3390.6,3390.4,0.29546]
[1735433741636,0.8849,3390.6,3390.2,2.38019298]
[1735433742429,0.8849,3390.6,3390.4,0.29546]
[1735433742841,0.8849,3390.6,3390.2,2.38019298]
[1735433743041,0.8849,3390.6,3389.7,3.9466]
[1735433743340,0.8849,3390.6,3390.3,0.29547]
[1735433743842,0.8849,3390.6,3390.2,0.29547]
[1735433745336,0.8849,3390.6,3390.0,2.38019298]
[1735433745738,0.8849,3390.6,3390.5,0.29545]
[1735433746336,0.8849,3390.6,3390.4,0.29546]
[1735433746534,0.8849,3390.6,3390.2,0.29548]
[1735433747135,0.8849,3390.6,3390.3,0.29547]
[1735433747540,0.8849,3390.6,3390.5,0.29545]
[1735433754541,0.8849,3390.6,3390.5,1.34149588]
[1735433758846,0.4417,3390.6,3390.5,1.34149588]
[1735433759344,0.4239,3390.7,3390.6,0.29544]
[1735433762046,0.9149,3390.9,3390.5,4.25384588]
[1735433762241,0.9149,3390.9,3390.8,1.34147588]
[1735433763345,1.3647,3390.9,3390.8,1.34147588]
[1735433765545,1.3647,3390.9,3390.8,1.04604588]
[1735433765746,1.3647,3390.9,3390.8,1.34147588]
[1735433778153,5.97552083,3390.9,3390.8,1.34147588]
[1735433780856,1.3647,3390.9,3390.8,1.34147588]
[1735433781257,1.3647,3390.9,3390.8,4.54927588]
[1735433783957,7.1363848,3390.9,3390.8,4.54927588]
[1735433787955,5.97661618,3390.9,3390.8,4.54927588]
[1735433794466,1.3647,3390.9,3390.8,4.54927588]
[1735433795563,7.1363848,3390.9,3390.8,4.54927588]
[1735433796966,1.3647,3390.9,3390.8,4.54927588]
[1735433800870,3.19062907,3391.0,3390.9,0.29542]
[1735433801071,6.93404987,3391.4,3391.3,0.29538]
[1735433801268,6.93404987,3391.4,3391.3,4.54922588]
[1735433802971,6.93404987,3391.4,3391.3,3.50318]
[1735433803170,6.93404987,3391.4,3391.3,4.54922588]
[1735433803473,4.78672,3391.7,3391.3,14.21808393]
[1735433803673,4.78672,3391.7,3391.6,1.34140588]
[1735433804471,1.3257,3391.7,3391.6,1.34140588]
[1735433806564,4.78305576,3391.7,3391.6,1.34140588]
[1735433807676,1.3257,3391.7,3391.6,1.34140588]
[1735433816780,3.45735576,3392.2,3392.1,0.29531]
[1735433816983,3.45735576,3392.2,3392.1,4.54915588]
[1735433817784,0.8823,3392.3,3392.2,0.2953]
[1735433823396,0.8823,3392.3,3392.2,3.5031]
[1735433823591,0.4543,3392.7,3392.6,0.29527]
[1735433823898,0.4543,3392.7,3392.6,4.54911588]
[1735433825599,0.4543,3392.7,3392.6,3.50307]
[1735433826101,0.4543,3392.7,3392.6,4.54911588]
[1735433831402,0.4543,3392.7,3392.6,5.59516176]
[1735433831706,0.4543,3392.7,3392.6,4.54911588]
[1735433832705,0.4543,3392.7,3392.6,3.50307]
[1735433832904,0.4543,3392.7,3392.6,4.54911588]
[1735433836402,0.4543,3392.7,3392.6,5.59516176]
[1735433837396,3.45735576,3393.1,3392.7,0.29526]
[1735433837604,2.03656837,3393.4,3393.3,0.29521]
[1735433837799,0.60912,3393.4,3393.3,3.56430176]
[1735433838000,1e-05,3393.4,3393.3,8.56430176]
[1735433838206,4.59496794,3393.6,3393.3,8.26909176]
[1735433838401,4.59496794,3393.6,3393.5,4.54903588]
[1735433839401,4.59496794,3393.6,3393.5,5.59508176]
[1735433839795,8.03934457,3394.3,3393.5,5.59508176]
[1735433839998,3.2078,3394.9,3394.4,0.29511]
[1735433840202,3.2078,3394.9,3394.6,1.04604588]
[1735433840403,3.2078,3394.9,3394.4,2.66914088]
[1735433840806,1.3396,3394.8,3394.4,2.66914088]
[1735433842111,1.3396,3394.8,3394.5,0.2951]
[1735433843705,6.3396,3394.8,3393.8,5.58183088]
[1735433843906,0.29514,3394.1,3393.8,3.2078]
[1735433844106,0.9061,3394.0,3393.5,0.29519]
[1735433844807,0.29516,3393.9,3393.4,2.37403088]
[1735433845108,0.29516,3393.9,3393.3,0.29521]
[1735433845508,0.29516,3393.9,3393.4,0.2952]
[1735433845810,0.29516,3393.9,3393.1,2.37403088]
[1735433846111,1.20125,3394.0,3393.6,0.29518]
[1735433846309,6.20125,3394.0,3393.1,2.37403088]
[1735433846504,6.20125,3394.0,3393.6,0.29518]
[1735433846705,6.20125,3394.0,3393.1,2.37403088]
[1735433846906,6.20125,3394.0,3393.6,0.29518]
[1735433847110,6.20125,3394.0,3393.1,2.37403088]
[1735433847111,6.20125,3394.0,3393.1,3.11210088]
[1735433848006,6.20125,3394.0,3393.7,0.29517]
[1735433848206,3.2078,3393.9,3393.7,0.24497]
[1735433848409,3.2078,3393.9,3393.8,0.29517]
[1735433853114,3.2078,3393.9,3393.1,5.58183088]
[1735433853313,3.2078,3393.9,3393.3,0.73803]
[1735433853511,3.2078,3393.9,3393.8,0.29517]
[1735433854009,3.50297,3393.9,3393.7,0.29517]
[1735433854711,3.2078,3393.9,3393.7,0.29517]
[1735433854909,0.29517,3393.8,3393.7,0.29517]
[1735433855501,3.50296,3393.9,3393.8,0.29517]
[1735433856902,3.2078,3393.9,3393.8,0.29517]
[1735433858210,3.50296,3393.9,3393.8,0.29517]
[1735433867112,0.29518,3393.8,3393.7,0.29517]
[1735433867520,0.29518,3393.7,3393.6,0.29518]
[1735433868308,3.2078,3393.9,3393.2,0.4328]
[1735433868514,3.2078,3393.9,3393.8,0.29517]
[1735433869617,3.50296,3393.9,3393.8,0.29517]
[1735433869818,3.2078,3393.9,3393.7,0.4488]
[1735433870021,0.29517,3393.8,3393.7,0.74397]
[1735433870420,3.2078,3393.9,3393.7,0.4488]
[1735433870614,3.2078,3393.9,3393.8,0.29517]
[1735433870819,7.81616849,3393.9,3393.8,0.29517]
[1735433871915,7.81616849,3393.9,3393.8,0.75207]
[1735433876116,8.11132849,3393.9,3393.8,0.75207]
[1735433876316,7.81616849,3393.9,3393.8,0.75207]
[1735433879023,7.81616849,3393.9,3393.8,0.29517]
[1735433885925,8.95720356,3393.9,3393.8,0.29517]
[1735433888330,9.25236356,3393.9,3393.8,0.29517]
[1735433888632,0.29517,3393.8,3393.7,0.4488]
[1735433888830,0.73127,3393.8,3393.7,0.4488]
[1735433889524,0.73127,3393.8,3393.7,0.74397]
[1735433889525,0.4361,3393.8,3393.7,0.74397]
[1735433890326,0.73127,3393.8,3393.7,0.74397]
[1735433891835,0.4361,3393.8,3393.7,0.74397]
[1735433892332,0.73127,3393.8,3393.7,0.4488]
[1735433894129,3.93907,3393.8,3393.7,0.4488]
[1735433896131,3.6439,3393.8,3393.7,0.4488]
[1735433896337,3.6439,3393.8,3393.7,0.74397]